bitfinex/quotes_BTCUSD_20241102
["timestamp","ask_amount","ask_price","bid_price","bid_amount"]
[1730562708189,0.247046,69278.0,69277.0,0.76691292]
[1730562715439,0.247046,69278.0,69277.0,0.56942192]
[1730562715850,0.247046,69278.0,69277.0,1.78253992]
[1730562716071,0.247046,69278.0,69277.0,1.14495292]
[1730562716306,0.247046,69278.0,69277.0,0.93825292]
[1730562720186,0.247046,69278.0,69277.0,0.84357992]
[1730562720410,0.247046,69278.0,69277.0,0.73808092]
[1730562720649,0.26056615,69278.0,69277.0,0.73808092]
[1730562721093,0.26056615,69278.0,69277.0,0.68324892]
[1730562721311,0.26056615,69278.0,69277.0,0.56942192]
[1730562722057,0.247046,69278.0,69277.0,1.48152807]
[1730562722283,0.247046,69278.0,69277.0,1.37132591]
[1730562722520,0.247046,69278.0,69277.0,1.57409463]
[1730562722727,0.247046,69278.0,69277.0,1.57609463]
[1730562722952,0.247046,69278.0,69277.0,1.57409463]
[1730562723413,0.247046,69278.0,69277.0,1.30119963]
[1730562724040,0.247046,69278.0,69277.0,1.29642164]
[1730562724249,0.247046,69278.0,69277.0,1.33006963]
[1730562724460,0.247046,69278.0,69277.0,1.29119963]
[1730562725579,0.247046,69278.0,69277.0,1.29336348]
[1730562726709,0.247046,69278.0,69277.0,1.22384752]
[1730562726933,0.247046,69278.0,69277.0,1.22862551]
[1730562727150,0.247046,69278.0,69277.0,1.31494281]
[1730562727360,0.247046,69278.0,69277.0,1.22862551]
[1730562727574,0.247046,69278.0,69277.0,1.23862551]
[1730562729130,0.247046,69278.0,69277.0,1.23866568]
[1730562732043,0.247046,69278.0,69277.0,0.65641063]
[1730562732254,0.247046,69278.0,69277.0,0.45358577]
[1730562732686,0.247046,69278.0,69277.0,0.44858577]
[1730562732894,0.247046,69278.0,69277.0,0.45358577]
[1730562733107,0.26056295,69278.0,69277.0,0.45358577]
[1730562733759,0.26056295,69278.0,69277.0,0.54358577]
[1730562735693,0.26056299,69278.0,69277.0,0.54358577]
[1730562738643,0.247046,69278.0,69277.0,0.54358577]
[1730562738841,0.26056156,69278.0,69277.0,0.54358577]
[1730562741130,0.26056156,69278.0,69277.0,0.40513052]
[1730562741362,0.39976156,69278.0,69277.0,0.40513052]
[1730562741830,0.39976156,69278.0,69277.0,0.40413052]
[1730562742297,0.39976156,69278.0,69277.0,0.40513052]
[1730562742759,0.39976156,69278.0,69277.0,0.40413052]
[1730562742974,0.39976156,69278.0,69277.0,0.40513052]
[1730562743441,0.39976156,69278.0,69277.0,0.40413052]
[1730562743948,0.39976156,69278.0,69277.0,0.40513052]
[1730562744625,0.26056156,69278.0,69277.0,0.54358577]
[1730562747342,0.247046,69278.0,69277.0,0.54358577]
[1730562747559,0.26055365,69278.0,69277.0,0.54358577]
[1730562750975,0.247046,69278.0,69277.0,0.54358577]
[1730562751168,0.26055234,69278.0,69277.0,0.54358577]
[1730562751871,0.26055234,69278.0,69277.0,0.40513052]
[1730562752349,0.50368374,69278.0,69277.0,0.40013052]
[1730562752580,0.50368374,69278.0,69277.0,0.40513052]
[1730562752581,0.50346173,69278.0,69277.0,0.40513052]
[1730562752801,0.50368374,69278.0,69277.0,0.40013052]
[1730562753006,0.50368374,69278.0,69277.0,0.39913052]
[1730562753215,0.6138859,69278.0,69277.0,0.39913052]
[1730562753426,0.50368374,69278.0,69277.0,0.39913052]
[1730562753663,0.6138859,69278.0,69277.0,0.10484885]
[1730562754080,0.65711673,69278.0,69277.0,0.10484885]
[1730562754308,0.65710544,69278.0,69277.0,0.10484885]
[1730562754568,0.46856801,69278.0,69277.0,0.10484885]
[1730562754801,0.50366794,69278.0,69277.0,0.10484885]
[1730562755005,0.50366794,69278.0,69277.0,0.20484885]
[1730562755243,0.50366794,69278.0,69277.0,0.20584885]
[1730562755679,0.50366794,69278.0,69277.0,0.20484885]
[1730562755889,0.50366794,69278.0,69277.0,0.20584885]
[1730562757897,1.00887794,69278.0,69277.0,0.20584885]
[1730562758112,1.0088614,69278.0,69277.0,0.20584885]
[1730562758753,1.11906356,69278.0,69277.0,0.20584885]
[1730562759681,1.12106356,69278.0,69277.0,0.20584885]
[1730562760099,1.11906356,69278.0,69277.0,0.20584885]
[1730562761423,1.0088614,69278.0,69277.0,0.20584885]
[1730562763181,1.11906356,69278.0,69277.0,0.20584885]
[1730562763851,1.0088614,69278.0,69277.0,0.20584885]
[1730562765169,0.99536605,69278.0,69277.0,0.20584885]
[1730562765395,1.00885858,69278.0,69277.0,0.20584885]
[1730562770034,1.11906074,69278.0,69277.0,0.20584885]
[1730562770500,1.12106074,69278.0,69277.0,0.20584885]
[1730562771387,1.11906074,69278.0,69277.0,0.20584885]
[1730562775282,1.00885858,69278.0,69277.0,0.20584885]
[1730562775728,1.00888362,69278.0,69277.0,0.20584885]
[1730562778188,0.78758362,69278.0,69277.0,0.20584885]
[1730562779239,0.77408146,69278.0,69277.0,0.20584885]
[1730562779448,0.76598768,69278.0,69277.0,0.20584885]
[1730562779665,0.78760316,69278.0,69277.0,0.20584885]
[1730562785378,0.78764741,69278.0,69277.0,0.20584885]
[1730562786256,0.89784957,69278.0,69277.0,0.20584885]
[1730562786713,1.03474957,69278.0,69277.0,0.20584885]
[1730562786959,1.11634957,69278.0,69277.0,0.00480585]
[1730562787189,1.18112869,69278.0,69277.0,0.10480585]
[1730562787401,1.11634957,69278.0,69277.0,0.10480585]
[1730562787665,1.11434957,69278.0,69277.0,0.10480585]
[1730562787875,1.17915782,69278.0,69277.0,0.20484885]
[1730562788089,1.11434957,69278.0,69277.0,0.20584885]
[1730562788305,1.27383996,69278.0,69277.0,0.20584885]
[1730562788522,1.27383996,69278.0,69277.0,0.10584885]
[1730562788523,1.40528675,69278.0,69277.0,0.10584885]
[1730562789025,0.7876428,69278.0,69277.0,0.10584885]
[1730562789238,0.83084645,69278.0,69277.0,0.10584885]
[1730562789682,0.7876428,69278.0,69277.0,0.10584885]
[1730562789893,0.7876428,69278.0,69277.0,0.10484885]
[1730562790358,0.7876428,69278.0,69277.0,0.10584885]
[1730562790588,0.7876428,69278.0,69277.0,0.20584885]
[1730562790808,0.7876428,69278.0,69277.0,0.20484885]
[1730562791225,0.7876428,69278.0,69277.0,0.20584885]
[1730562791666,0.7876428,69278.0,69277.0,0.20484885]
[1730562792104,0.7876428,69278.0,69277.0,0.28334885]
[1730562792319,0.75247801,69278.0,69277.0,0.28334885]
[1730562792537,0.77411357,69278.0,69277.0,0.28334885]
[1730562792749,0.78763551,69278.0,69277.0,0.28334885]
[1730562792989,0.78763551,69278.0,69277.0,0.28434885]
[1730562794454,0.78763367,69278.0,69277.0,0.28434885]
[1730562794831,0.78763368,69278.0,69277.0,0.28434885]
[1730562796207,0.78763368,69278.0,69277.0,0.20584885]
[1730562796652,0.78763368,69278.0,69277.0,0.21084885]
[1730562801621,0.78741167,69278.0,69277.0,0.21084885]
[1730562801898,0.78741167,69278.0,69277.0,0.5530041]
[1730562802130,0.76577741,69278.0,69277.0,0.5530041]
[1730562803030,0.76576858,69278.0,69277.0,0.5530041]
[1730562805069,0.752256,69278.0,69277.0,0.5530041]
[1730562805312,0.752256,69278.0,69277.0,0.5580041]
[1730562806417,0.752256,69278.0,69277.0,0.5570041]
[1730562806632,0.752256,69278.0,69277.0,0.5580041]
[1730562809751,0.752256,69278.0,69277.0,0.55584025]
[1730562810400,0.752256,69278.0,69277.0,0.55800429]
[1730562813327,0.752256,69278.0,69277.0,0.55584025]
[1730562813799,0.752256,69278.0,69277.0,0.55800429]
[1730562814436,0.752256,69278.0,69277.0,0.58687429]
[1730562832398,0.7657798,69278.0,69277.0,0.58687429]
[1730562833271,0.7657798,69278.0,69277.0,0.58587429]
[1730562833724,0.7657798,69278.0,69277.0,0.58687429]
[1730562834865,0.752256,69278.0,69277.0,0.58687429]
[1730562835079,0.76578275,69278.0,69277.0,0.58687429]
[1730562837372,0.76578275,69278.0,69277.0,0.21084904]
[1730562837597,0.78742663,69278.0,69277.0,0.21084904]
[1730562838436,0.78742663,69278.0,69277.0,0.20984904]
[1730562838861,0.78742663,69278.0,69277.0,0.21084904]
[1730562839322,0.78742663,69278.0,69277.0,0.20984904]
[1730562839758,0.78742663,69278.0,69277.0,0.21084904]
[1730562840220,0.78742663,69278.0,69277.0,0.20984904]
[1730562842187,0.78742663,69278.0,69277.0,0.21084904]
[1730562842628,0.78742663,69278.0,69277.0,0.20984904]
[1730562843270,0.78742663,69278.0,69277.0,0.21084904]
[1730562845489,0.76578275,69278.0,69277.0,0.21084904]
[1730562848429,0.76600476,69278.0,69277.0,0.21084904]
[1730562849300,0.76578275,69278.0,69277.0,0.21084904]
[1730562849518,0.76600476,69278.0,69277.0,0.21084904]
[1730562850783,0.78762435,69278.0,69277.0,0.21084904]
[1730562851882,0.76578275,69278.0,69277.0,0.21084904]
[1730562852100,0.78762349,69278.0,69277.0,0.21084904]
[1730562855851,0.78740148,69278.0,69277.0,0.21084904]
[1730562856084,0.78762349,69278.0,69277.0,0.21084904]
[1730562856939,0.89782565,69278.0,69277.0,0.20584904]
[1730562857190,0.97852565,69278.0,69277.0,0.20584904]
[1730562857861,0.97852565,69278.0,69277.0,0.20484904]
[1730562858109,0.86832349,69278.0,69277.0,0.20484904]
[1730562858318,0.86832349,69278.0,69277.0,0.20584904]
[1730562858791,0.86832349,69278.0,69277.0,0.20484904]
[1730562859011,0.86832349,69278.0,69277.0,0.20584904]
[1730562862465,0.8683025,69278.0,69277.0,0.20584904]
[1730562865321,0.8683025,69278.0,69277.0,0.20484904]
[1730562865747,0.8683025,69278.0,69277.0,0.20584904]
[1730562866418,0.83317801,69278.0,69277.0,0.20584904]
[1730562866655,0.86831545,69278.0,69277.0,0.20584904]
[1730562867981,0.868322,69278.0,69277.0,0.20584904]
[1730562868651,0.83317801,69278.0,69277.0,0.20584904]
[1730562868857,0.86832125,69278.0,69277.0,0.20584904]
[1730562869921,0.86832062,69278.0,69277.0,0.20584904]
[1730562870161,0.78762062,69278.0,69277.0,0.20584904]
[1730562873064,0.78762062,69278.0,69277.0,0.21084904]
[1730562873282,0.78762062,69278.0,69277.0,0.41344904]
[1730562873283,0.78739861,69278.0,69277.0,0.41344904]
[1730562873518,0.752256,69278.0,69277.0,0.55190429]
[1730562873745,0.76576997,69278.0,69277.0,0.55190429]
[1730562874903,0.75247801,69278.0,69277.0,0.55190429]
[1730562875401,0.752256,69278.0,69277.0,0.55190429]
[1730562875632,0.752256,69278.0,69277.0,0.56361951]
[1730562876332,0.607911,69278.0,69277.0,0.59248951]
[1730562876798,0.607911,69278.0,69277.0,0.59148951]
[1730562876799,0.579042,69278.0,69277.0,0.59148951]
[1730562877026,0.579042,69278.0,69277.0,0.59248951]
[1730562877529,0.579042,69278.0,69277.0,0.59148951]
[1730562877742,0.434697,69278.0,69277.0,0.59148951]
[1730562877977,0.434697,69278.0,69277.0,0.59248951]
[1730562878196,0.867737,69278.0,69277.0,0.59248951]
[1730562878414,0.867737,69278.0,69277.0,0.59148951]
[1730562879373,0.867737,69278.0,69277.0,0.56261951]
[1730562879374,0.723392,69278.0,69277.0,0.56261951]
[1730562879795,0.579047,69278.0,69277.0,0.56261951]
[1730562881302,0.521309,69278.0,69277.0,0.56261951]
[1730562885604,0.52213,69278.0,69277.0,0.56261951]
[1730562889291,0.52213,69278.0,69277.0,0.59148951]
[1730562891219,0.493261,69278.0,69277.0,0.59148951]
[1730562891430,0.377785,69278.0,69277.0,0.59148951]
[1730562891651,0.348916,69278.0,69277.0,0.59148951]
[1730562891865,0.262309,69278.0,69277.0,0.59148951]
[1730562898767,0.175702,69278.0,69277.0,0.60148951]
[1730562899003,0.117964,69278.0,69277.0,0.60148951]
[1730562899637,0.089095,69278.0,69277.0,0.60148951]
[1730562899854,0.031357,69278.0,69277.0,0.65919151]
[1730562900492,1e-06,69278.0,69277.0,0.65919151]
[1730562900701,0.433041,69278.0,69277.0,0.64919151]
[1730562900907,0.404172,69278.0,69277.0,1.88398551]
[1730562901154,0.375303,69278.0,69277.0,1.88398551]
[1730562901371,0.375303,69278.0,69277.0,1.60140351]
[1730562901576,0.375303,69278.0,69277.0,1.45343951]
[1730562902207,0.259827,69278.0,69277.0,1.45343951]
[1730562902421,0.230958,69278.0,69277.0,1.45343951]
[1730562902633,0.202089,69278.0,69277.0,1.4812175]
[1730562902864,0.086613,69278.0,69277.0,1.4812175]
[1730562903547,0.086613,69278.0,69277.0,1.4912175]
[1730562903753,0.057744,69278.0,69277.0,1.4912175]
[1730562903958,6e-06,69278.0,69277.0,1.4912175]
[1730562905269,6e-06,69278.0,69277.0,1.4922175]
[1730562905486,6e-06,69278.0,69277.0,1.48743951]
[1730562905752,6e-06,69278.0,69277.0,1.4822175]
[1730562907673,6e-06,69278.0,69277.0,1.47743951]
[1730562907883,6e-06,69278.0,69277.0,1.4822175]
[1730562908509,6e-06,69278.0,69277.0,1.47743951]
[1730562908727,6e-06,69278.0,69277.0,1.4922175]
[1730562908728,1e-06,69278.0,69277.0,1.4922175]
[1730562908963,0.404172,69278.0,69277.0,1.4922175]
[1730562909371,0.375303,69278.0,69277.0,1.4922175]
[1730562909632,0.317565,69278.0,69277.0,1.4922175]
[1730562909838,0.230958,69278.0,69277.0,1.4922175]
[1730562910046,0.202089,69278.0,69277.0,1.4922175]
[1730562910256,0.17322,69278.0,69277.0,1.48743951]
[1730562910461,0.17322,69278.0,69277.0,1.4922175]
[1730562910672,0.115482,69278.0,69277.0,1.4922175]
[1730562910880,0.028875,69278.0,69277.0,1.4822175]
[1730562911670,6e-06,69278.0,69277.0,1.4822175]
[1730562912329,6e-06,69278.0,69277.0,1.47743951]
[1730562914612,6e-06,69278.0,69277.0,1.48743951]
[1730562914863,6e-06,69278.0,69277.0,1.60241966]
[1730562915091,0.21736652,69289.0,69288.0,0.39850499]
[1730562915318,0.21736652,69289.0,69288.0,3.51783524]
[1730562915548,0.433791,69289.0,69288.0,3.51783524]
[1730562915760,0.433791,69289.0,69288.0,2.92304424]
[1730562916041,0.318331,69289.0,69288.0,2.94126625]
[1730562916272,0.289466,69289.0,69288.0,2.94804424]
[1730562916499,0.289466,69289.0,69288.0,2.94904424]
[1730562916714,0.260601,69289.0,69288.0,2.99011213]
[1730562916946,0.202871,69289.0,69288.0,2.99011213]
[1730562917155,0.202871,69289.0,69288.0,2.94704424]
[1730562917156,0.145141,69289.0,69288.0,2.94704424]
[1730562917589,0.145141,69289.0,69288.0,0.96453724]
[1730562917805,0.000816,69289.0,69288.0,5.24141424]
[1730562918017,0.000821,69297.0,69296.0,0.21579299]
[1730562918285,0.000821,69297.0,69296.0,4.1486054]
[1730562918526,0.433741,69297.0,69296.0,4.09841064]
[1730562918765,0.376019,69297.0,69296.0,4.0553574]
[1730562918983,0.347158,69297.0,69296.0,4.0553574]
[1730562919201,0.289436,69297.0,69296.0,4.0264974]
[1730562919631,0.289436,69297.0,69296.0,4.06953009]
[1730562919881,0.145131,69297.0,69296.0,4.0364974]
[1730562920096,0.145131,69297.0,69296.0,4.07950732]
[1730562920541,0.145131,69297.0,69296.0,4.0364974]
[1730562921388,0.000821,69315.0,69314.0,0.01]
[1730562921402,0.000821,69315.0,69314.0,0.429389]
[1730562921628,0.375103,69315.0,69314.0,6.5496694]
[1730562921860,0.375103,69315.0,69314.0,5.4105984]
[1730562921861,0.230833,69315.0,69314.0,5.4105984]
[1730562922292,0.2158134,69315.0,69314.0,5.4225984]
[1730562922549,0.2158134,69315.0,69314.0,5.3910884]
[1730562922773,0.2158134,69315.0,69314.0,4.6569254]
[1730562922975,0.2158134,69315.0,69314.0,4.54672324]
[1730562923444,0.1869594,69315.0,69314.0,4.40018024]
[1730562923941,0.1869594,69315.0,69314.0,4.40218024]
[1730562924152,0.1581054,69315.0,69314.0,4.5123824]
[1730562924364,0.1003974,69315.0,69314.0,4.5123824]
[1730562924608,0.0426894,69315.0,69314.0,4.5123824]
[1730562924823,4e-07,69315.0,69314.0,4.51926246]
[1730562925072,4e-07,69315.0,69314.0,2.53320446]
[1730562925747,4e-07,69315.0,69314.0,2.52120446]
[1730562926183,4e-07,69315.0,69314.0,2.52320446]
[1730562928861,4e-07,69315.0,69314.0,2.4110023]
[1730562931160,4e-07,69315.0,69314.0,2.2156023]
[1730562931598,0.0008214,69315.0,69314.0,2.2156023]
[1730562932310,0.0008214,69315.0,69314.0,3.3252713]
[1730562932533,0.0008214,69315.0,69314.0,3.1050353]
[1730562933684,0.0008214,69315.0,69314.0,3.24131731]
[1730562933912,0.0008214,69315.0,69314.0,3.2460953]
[1730562934155,0.0008214,69315.0,69314.0,3.2230953]
[1730562934394,0.0008214,69315.0,69314.0,2.4565953]
[1730562934613,4e-07,69315.0,69314.0,2.66751947]
[1730562934857,4e-07,69315.0,69314.0,2.2981023]
[1730562934858,0.2885404,69315.0,69314.0,2.2981023]
[1730562935279,0.2885404,69315.0,69314.0,2.29332431]
[1730562935554,0.2885404,69315.0,69314.0,2.2981023]
[1730562935772,0.2019784,69315.0,69314.0,2.2981023]
[1730562936004,0.1442704,69315.0,69314.0,2.2981023]
[1730562936233,0.1442704,69315.0,69314.0,2.30026473]
[1730562936451,0.1442704,69315.0,69314.0,5.58734773]
[1730562936679,0.1154164,69315.0,69314.0,5.69754989]
[1730562936795,0.0577114,69315.0,69314.0,5.69954989]
[1730562937002,9.4e-06,69315.0,69314.0,5.69954989]
[1730562937436,9.4e-06,69315.0,69314.0,5.91755205]
[1730562937651,0.07394752,69330.0,69329.0,0.210967]
[1730562937869,0.50666752,69330.0,69329.0,0.70992225]
[1730562938092,0.43272,69330.0,69329.0,0.70992225]
[1730562938518,0.43272,69330.0,69329.0,2.68518725]
[1730562938729,0.43272,69330.0,69329.0,2.74284625]
[1730562938943,0.43272,69330.0,69329.0,2.05813225]
[1730562941407,0.43272,69330.0,69329.0,1.46925225]
[1730562941799,0.43272,69330.0,69329.0,1.47597627]
[1730562942963,0.43354,69330.0,69329.0,1.47597627]
[1730562943863,0.43354,69330.0,69329.0,1.48491587]
[1730562945246,0.43354,69330.0,69329.0,1.40065087]
[1730562945468,0.43354,69330.0,69329.0,1.36884387]
[1730562945699,0.43354,69330.0,69329.0,0.97391287]
[1730562945912,0.43354,69330.0,69329.0,0.96391287]
[1730562947584,0.43354,69330.0,69329.0,0.89387287]
[1730562948887,0.43354,69330.0,69329.0,1.37520287]
[1730562949347,0.43354,69330.0,69329.0,1.36357287]
[1730562953010,0.43354,69330.0,69329.0,0.92370387]
[1730562953284,0.51224,69330.0,69329.0,0.72058587]
[1730562953490,0.5257311,69330.0,69329.0,0.72058587]
[1730562954152,0.5257311,69330.0,69329.0,0.71058587]
[1730562954625,0.5207311,69330.0,69329.0,0.71058587]
[1730562954831,0.51537193,69330.0,69329.0,0.71058587]
[1730562957219,0.50188083,69330.0,69329.0,0.71058587]
[1730562957429,0.51537385,69330.0,69329.0,0.71058587]
[1730562961563,0.51037385,69330.0,69329.0,0.71058587]
[1730562961780,0.43167385,69330.0,69329.0,0.35008587]
[1730562963293,0.43167781,69330.0,69329.0,0.35008587]
[1730562964404,0.43168124,69330.0,69329.0,0.35008587]
[1730562964614,0.43168124,69330.0,69329.0,0.35508587]
[1730562964820,0.41818083,69330.0,69329.0,0.35508587]
[1730562966407,0.41818083,69330.0,69329.0,0.35008587]
[1730562966634,0.43168298,69330.0,69329.0,0.35008587]
[1730562966864,0.43168298,69330.0,69329.0,0.35172587]
[1730562967104,0.42668298,69330.0,69329.0,0.35172587]
[1730562969143,0.41318083,69330.0,69329.0,0.35172587]
[1730562977595,0.44019239,69330.0,69329.0,0.35172587]
[1730562978925,0.42668676,69330.0,69329.0,0.35172587]
[1730562979451,0.41318083,69330.0,69329.0,0.35172587]
[1730562991355,0.32663683,69330.0,69329.0,0.96058587]
[1730562991560,0.26894083,69330.0,69329.0,0.96058587]
[1730562991766,0.12470083,69330.0,69329.0,0.96058587]
[1730562991970,0.12455804,69330.0,69329.0,0.96058587]
[1730562995731,0.12455804,69330.0,69329.0,0.97058587]
[1730562996171,0.12455804,69330.0,69329.0,0.96058587]
[1730562999170,0.12455804,69330.0,69329.0,0.97058587]
[1730563000954,0.12455804,69330.0,69329.0,0.92995587]
[1730563001448,0.12455804,69330.0,69329.0,0.91995587]
[1730563001658,0.12455804,69330.0,69329.0,0.89685587]
[1730563002520,0.12455804,69330.0,69329.0,0.96134081]
[1730563003190,0.12455804,69330.0,69329.0,0.89685587]
[1730563003404,0.12455804,69330.0,69329.0,1.07185187]
[1730563004062,0.12455804,69330.0,69329.0,1.13633681]
[1730563004280,0.09571004,69330.0,69329.0,1.07185187]
[1730563004494,0.06686204,69330.0,69329.0,1.11483438]
[1730563005578,0.06686204,69330.0,69329.0,1.07185187]
[1730563005807,0.06686204,69330.0,69329.0,1.11483222]
[1730563005808,4e-08,69330.0,69329.0,1.11483222]
[1730563006031,4e-08,69330.0,69329.0,0.39970622]
[1730563006253,0.43272004,69330.0,69329.0,0.39970622]
[1730563006522,0.43272004,69330.0,69329.0,0.39970524]
[1730563006735,0.43272004,69330.0,69329.0,1.74137224]
[1730563007622,0.43272004,69330.0,69329.0,1.67914224]
[1730563007898,0.43272004,69330.0,69329.0,1.67914261]
[1730563008322,0.43272004,69330.0,69329.0,1.23892261]
[1730563011797,0.43272004,69330.0,69329.0,1.19594287]
[1730563012249,0.43272004,69330.0,69329.0,1.25360287]
[1730563012460,0.43272004,69330.0,69329.0,1.29657951]
[1730563013376,0.28848004,69330.0,69329.0,1.27660287]
[1730563013582,0.28848004,69330.0,69329.0,1.43317951]
[1730563013816,0.28848004,69330.0,69329.0,1.51087951]
[1730563013817,0.14424004,69330.0,69329.0,1.51087951]
[1730563014498,0.14424004,69330.0,69329.0,1.53973951]
[1730563014724,0.14424004,69330.0,69329.0,1.50154086]
[1730563014725,0.02885404,69330.0,69329.0,1.50154086]
[1730563014968,9.04e-06,69330.0,69329.0,1.56600582]
[1730563015392,9.04e-06,69330.0,69329.0,1.50154086]
[1730563015630,4e-08,69336.0,69329.0,1.50354086]
[1730563015843,4e-08,69336.0,69335.0,0.67485601]
[1730563016275,0.34614504,69336.0,69335.0,0.67285601]
[1730563016516,0.34614504,69336.0,69335.0,0.74206425]
[1730563016517,0.31730004,69336.0,69335.0,0.74206425]
[1730563018513,0.02885604,69336.0,69335.0,5.758494]
[1730563018719,1.304e-05,69336.0,69335.0,5.8228894]
[1730563018936,4e-08,69340.0,69339.0,0.25127059]
[1730563019147,4e-08,69340.0,69339.0,0.60281189]
[1730563019390,0.43265004,69340.0,69339.0,0.609928]
[1730563020228,0.43265004,69340.0,69339.0,4.25494501]
[1730563020436,0.40380704,69340.0,69339.0,4.18715701]
[1730563020650,0.28843504,69340.0,69339.0,3.735667]
[1730563020866,0.28843504,69340.0,69339.0,3.649655]
[1730563021080,0.28843504,69340.0,69339.0,3.617668]
[1730563021292,0.28843504,69340.0,69339.0,3.607668]
[1730563022606,0.14422004,69340.0,69339.0,3.685368]
[1730563022824,0.06626924,69340.0,69339.0,3.687368]
[1730563023283,0.06626924,69340.0,69339.0,3.68259001]
[1730563023946,0.06708924,69340.0,69339.0,3.687368]
[1730563024403,0.06708924,69340.0,69339.0,3.697368]
[1730563024616,0.06708924,69340.0,69339.0,3.726228]
[1730563024833,0.06708924,69340.0,69339.0,3.73301436]
[1730563026132,0.06708924,69340.0,69339.0,3.72823637]
[1730563026340,0.06708924,69340.0,69339.0,3.73301436]
[1730563026739,0.06708924,69340.0,69339.0,3.72301436]
[1730563027589,0.06708924,69340.0,69339.0,3.71823637]
[1730563028258,0.06708924,69340.0,69339.0,3.77588037]
[1730563028691,0.06708924,69340.0,69339.0,0.76814037]
[1730563028921,0.06708924,69340.0,69339.0,4.36254837]
[1730563029131,0.06708924,69340.0,69339.0,4.30087037]
[1730563029788,0.06708924,69340.0,69339.0,4.31087037]
[1730563030232,0.06708924,69340.0,69339.0,4.22999337]
[1730563030665,0.06708924,69340.0,69339.0,4.21175737]
[1730563031135,0.06708924,69340.0,69339.0,4.04390837]
[1730563031353,0.06708924,69340.0,69339.0,4.04868636]
[1730563031584,0.06708924,69340.0,69339.0,4.03868636]
[1730563032272,0.06708924,69340.0,69339.0,4.08153056]
[1730563032716,0.06708924,69340.0,69339.0,4.03868636]
[1730563034859,0.000817,69348.0,69347.0,0.01571759]
[1730563035080,0.000817,69348.0,69347.0,0.578475]
[1730563035291,0.433417,69348.0,69347.0,5.628475]
[1730563035498,0.433417,69348.0,69347.0,5.145731]
[1730563035703,0.433417,69348.0,69347.0,5.029722]
[1730563035903,0.433417,69348.0,69347.0,5.039722]
[1730563036753,0.433417,69348.0,69347.0,4.977846]
[1730563036957,0.433417,69348.0,69347.0,4.614696]
[1730563037165,0.433417,69348.0,69347.0,4.59472]
[1730563037372,0.433417,69348.0,69347.0,4.493243]
[1730563037733,0.433417,69348.0,69347.0,4.419218]
[1730563039376,0.433417,69348.0,69347.0,4.448078]
[1730563039588,0.433417,69348.0,69347.0,4.450078]
[1730563039804,0.37178034,69348.0,69347.0,4.460078]
[1730563040046,0.32805034,69348.0,69347.0,4.460078]
[1730563040356,0.13934001,69348.0,69347.0,4.69966774]
[1730563040573,0.13454001,69348.0,69347.0,4.66376488]
[1730563040776,0.13454001,69348.0,69347.0,4.61771409]
[1730563040930,0.09478001,69348.0,69347.0,4.61771409]
[1730563041158,0.09478001,69348.0,69347.0,4.74930004]
[1730563041535,0.09478001,69348.0,69347.0,4.68670669]
[1730563041736,0.09478001,69348.0,69347.0,4.57650453]
[1730563042419,0.09478001,69348.0,69347.0,4.67984197]
[1730563042843,0.09478001,69348.0,69347.0,4.74391961]
[1730563043269,0.09478001,69348.0,69347.0,4.97634197]
[1730563043481,0.09478001,69348.0,69347.0,5.92584197]
[1730563043900,0.05278001,69348.0,69347.0,5.92584197]
[1730563044121,0.05278001,69348.0,69347.0,6.30777576]
[1730563044340,0.05278001,69348.0,69347.0,6.22234197]
[1730563044558,0.05278001,69348.0,69347.0,6.23234197]
[1730563044743,0.000817,69359.0,69358.0,0.12919759]
[1730563044945,0.21654552,69365.0,69364.0,0.01371759]
[1730563045094,0.21654552,69365.0,69364.0,1.819575]
[1730563045296,0.21654552,69376.0,69375.0,0.0089396]
[1730563045499,0.64897552,69376.0,69375.0,0.28033666]
[1730563045774,0.43243,69376.0,69375.0,0.28033666]
[1730563046370,0.43243,69376.0,69375.0,4.23761166]
[1730563046603,0.43243,69376.0,69375.0,4.19079685]
[1730563047134,0.43243,69376.0,69375.0,3.30623985]
[1730563047822,0.43243,69376.0,69375.0,3.36218166]
[1730563048047,0.43243,69376.0,69375.0,3.33255866]
[1730563049155,0.43243,69376.0,69375.0,0.30333666]
[1730563049819,0.43243,69376.0,69375.0,0.41353882]
[1730563050029,0.43243,69376.0,69375.0,5.46353882]
[1730563050460,0.43243,69376.0,69375.0,5.21893882]
[1730563051546,0.43243,69376.0,69375.0,5.30555882]
[1730563051986,0.43243,69376.0,69375.0,5.31231403]
[1730563052203,0.43243,69376.0,69375.0,5.31431403]
[1730563052428,0.43243,69376.0,69375.0,5.23316603]
[1730563052652,0.43243,69376.0,69375.0,5.20022422]
[1730563052890,0.43243,69376.0,69375.0,5.19822422]
[1730563054425,0.43243,69376.0,69375.0,5.31710221]
[1730563056597,0.43243,69376.0,69375.0,5.11828005]
[1730563056831,0.43243,69376.0,69375.0,3.17944505]
[1730563057257,0.43243,69376.0,69375.0,3.18144505]
[1730563057534,0.43243,69376.0,69375.0,4.59279605]
[1730563057801,0.43243,69376.0,69375.0,4.54708505]
[1730563058000,0.35158001,69376.0,69375.0,4.84668721]
[1730563058213,0.35158001,69376.0,69375.0,4.84868721]
[1730563059285,0.35158001,69376.0,69375.0,4.53109021]
[1730563059507,0.35158001,69376.0,69375.0,4.37810621]
[1730563059747,0.35240001,69376.0,69375.0,4.37810621]
[1730563060158,0.35240001,69376.0,69375.0,4.38010621]
[1730563062837,0.30890001,69376.0,69375.0,4.38010621]
[1730563063502,0.26649001,69376.0,69375.0,5.62610621]
[1730563063946,0.26649001,69376.0,69375.0,5.64259779]
[1730563064165,0.26649001,69376.0,69375.0,5.67145779]
[1730563064586,0.09991721,69376.0,69375.0,5.67145779]
[1730563064792,0.09991721,69376.0,69375.0,5.68145779]
[1730563065007,0.09991721,69376.0,69375.0,5.72257621]
[1730563065676,0.09991721,69376.0,69375.0,6.01857621]
[1730563066312,0.09991721,69376.0,69375.0,2.30862021]
[1730563066731,0.09991721,69376.0,69375.0,7.35862021]
[1730563067926,0.21654552,69396.0,69375.0,7.35862021]
[1730563067927,0.21654552,69395.0,69384.0,0.17767759]
[1730563068133,0.21654552,69395.0,69384.0,5.57921698]
[1730563068346,0.21654552,69395.0,69384.0,5.662955]
[1730563068567,0.433187,69385.0,69384.0,5.662955]
[1730563071416,0.433187,69385.0,69384.0,5.528919]
[1730563071616,0.433187,69385.0,69384.0,5.29092]
[1730563071830,0.433187,69385.0,69384.0,5.136091]
[1730563072466,0.433187,69385.0,69384.0,6.382091]
[1730563073992,0.433187,69385.0,69384.0,6.38881662]
[1730563074875,0.433187,69385.0,69384.0,6.49901878]
[1730563076811,0.433187,69385.0,69384.0,6.38881662]
[1730563078098,0.433187,69385.0,69384.0,5.98039962]
[1730563078953,0.433187,69385.0,69384.0,5.89928762]
[1730563079152,0.433187,69385.0,69384.0,5.81264462]